bitfinex/quotes_SOLUSD_20241127
["timestamp","ask_amount","ask_price","bid_price","bid_amount"]
[1732715462802,1.5190988,237.37,237.34,8.1888151]
[1732715463383,1.5190988,237.37,237.29,15.4417]
[1732715463588,1.5190988,237.37,237.32,8.1888151]
[1732715464304,1.5190988,237.37,237.34,8.1888151]
[1732715464900,1.5190988,237.37,237.3,14.7491]
[1732715465202,1.5190988,237.37,237.3,4.214]
[1732715465408,8.1888151,237.36,237.29,15.4417]
[1732715466190,12.4018151,237.36,237.29,19.6559]
[1732715466378,4.213,237.36,237.29,32.44933321]
[1732715466909,4.213,237.36,237.29,28.23513321]
[1732715467088,4.213,237.36,237.29,32.44933321]
[1732715467293,4.213,237.36,237.29,28.23513321]
[1732715467981,1.5190988,237.37,237.31,12.79343321]
[1732715468188,1.5190988,237.37,237.33,17.00693321]
[1732715468388,1.5190988,237.37,237.35,12.79343321]
[1732715471087,1.5190988,237.37,237.35,17.00643321]
[1732715471400,1.5190988,237.37,237.36,15.0496]
[1732715472385,1.5190988,237.37,237.36,19.2626]
[1732715476819,1.5190988,237.37,237.36,32.05603321]
[1732715479915,12.79343321,237.5,237.36,32.05603321]
[1732715479916,12.79343321,237.52,237.36,56.22221017]
[1732715480227,5.0,237.58,237.36,56.22221017]
[1732715480228,17.00263321,237.58,237.5,12.79343321]
[1732715480424,12.79343321,237.56,237.48,29.23483321]
[1732715480720,4.2092,237.58,237.44,6.6576]
[1732715480721,12.79343321,237.54,237.46,12.79343321]
[1732715481295,12.79343321,237.52,237.44,12.79343321]
[1732715481694,12.79343321,237.52,237.44,17.00493321]
[1732715482094,12.79343321,237.52,237.44,12.79343321]
[1732715482293,17.00363321,237.52,237.44,12.79343321]
[1732715482529,17.00363321,237.52,237.44,17.00493321]
[1732715483909,12.79343321,237.5,237.42,12.79343321]
[1732715484104,12.79343321,237.5,237.4,12.79343321]
[1732715484415,12.79343321,237.5,237.42,12.79343321]
[1732715484818,4.2089,237.59,237.48,12.79343321]
[1732715485119,17.00213321,237.6,237.53,12.79343321]
[1732715485492,12.79343321,237.6,237.53,12.79343321]
[1732715485691,12.79343321,237.62,237.53,12.79343321]
[1732715485909,12.79343321,237.62,237.54,4.2098]
[1732715487718,12.79343321,237.62,237.53,12.79343321]
[1732715487719,4.7277988,237.61,237.53,12.79343321]
[1732715488020,12.79343321,237.6,237.51,12.79343321]
[1732715489202,0.5190988,237.61,237.53,12.79343321]
[1732715489401,4.7275988,237.61,237.53,12.79343321]
[1732715490416,4.7275988,237.61,237.54,4.2098]
[1732715490599,8.17089731,237.6,237.5,10.3872]
[1732715490922,4.7275988,237.61,237.53,8.17089731]
[1732715491103,0.5190988,237.61,237.53,8.17089731]
[1732715491295,4.7275988,237.61,237.53,8.17089731]
[1732715492319,12.37969731,237.6,237.51,12.38109731]
[1732715494208,0.5190988,237.61,237.54,8.17089731]
[1732715495329,0.5190988,237.61,237.56,8.17089731]
[1732715495638,0.5190988,237.61,237.54,8.17089731]
[1732715496333,0.5190988,237.61,237.53,8.17089731]
[1732715497011,0.5190988,237.61,237.55,8.17089731]
[1732715497533,0.5190988,237.61,237.59,8.17089731]
[1732715498306,0.5190988,237.61,237.6,4.2087]
[1732715498816,0.5190988,237.61,237.58,8.17089731]
[1732715500630,0.5190988,237.61,237.56,8.17089731]
[1732715501016,0.5190988,237.61,237.53,4.2099]
[1732715501017,0.5190988,237.61,237.58,8.17089731]
[1732715501532,0.5190988,237.61,237.6,8.17089731]
[1732715502413,0.5190988,237.61,237.6,12.37959731]
[1732715502931,0.5190988,237.61,237.6,28.30939731]
[1732715504228,0.5190988,237.61,237.6,4.2087]
[1732715504416,0.5190988,237.61,237.6,8.17089731]
[1732715504616,0.5190988,237.61,237.6,9.01021558]
[1732715504812,0.5190988,237.61,237.6,8.17089731]
[1732715505137,0.5190988,237.61,237.58,4.2091]
[1732715505315,0.5190988,237.61,237.58,12.37999731]
[1732715506412,0.5190988,237.61,237.58,4.2091]
[1732715506619,0.5190988,237.61,237.59,8.17089731]
[1732715507324,0.5190988,237.61,237.59,12.37969731]
[1732715510012,0.5190988,237.61,237.55,4.2096]
[1732715510214,0.5190988,237.61,237.59,8.17089731]
[1732715511920,0.5190988,237.61,237.59,12.37979731]
[1732715512123,4.7275988,237.61,237.5,4.2105]
[1732715512357,0.5190988,237.61,237.55,8.17089731]
[1732715512637,4.7275988,237.61,237.55,8.17089731]
[1732715513220,0.5190988,237.61,237.55,8.17089731]
[1732715514523,4.7275988,237.61,237.55,8.17089731]
[1732715514923,12.89849611,237.61,237.54,4.2098]
[1732715515250,8.17089731,237.59,237.5,12.38119731]
[1732715515446,4.7275988,237.61,237.48,16.5686]
[1732715515447,8.17089731,237.56,237.48,16.5686]
[1732715515651,8.17089731,237.54,237.47,8.17089731]
[1732715515831,15.2489988,237.61,237.45,8.17089731]
[1732715516033,8.17089731,237.54,237.46,4.2112]
[1732715516335,4.2099,237.54,237.47,12.77444454]
[1732715516530,11.0404988,237.61,237.47,12.77444454]
[1732715516531,12.77444454,237.56,237.47,13.61447432]
[1732715516748,12.77444454,237.56,237.47,12.77444454]
[1732715517846,16.98404454,237.56,237.47,16.98544454]
[1732715518222,12.77444454,237.6,237.53,12.77444454]
[1732715518422,0.5190988,237.61,237.53,12.77444454]
[1732715518647,4.7276988,237.61,237.53,12.77444454]
[1732715518841,12.77444454,237.6,237.53,12.77444454]
[1732715519028,12.77444454,237.6,237.51,12.77444454]
[1732715519228,4.7276988,237.61,237.51,12.77444454]
[1732715519229,12.77444454,237.58,237.51,12.77444454]
[1732715519428,12.77444454,237.58,237.49,12.77444454]
[1732715520448,12.77444454,237.56,237.47,12.77444454]
[1732715521547,4.2096,237.55,237.47,16.98544454]
[1732715522652,4.2096,237.55,237.47,12.77444454]
[1732715522847,4.2096,237.55,237.47,16.98544454]
[1732715523242,4.2096,237.55,237.47,12.77444454]
[1732715524341,6.4861,237.54,237.4,0.84004593]
[1732715524551,12.77444454,237.51,237.42,12.77444454]
[1732715524844,12.77444454,237.49,237.4,12.77444454]
[1732715525155,12.77444454,237.47,237.38,12.77444454]
[1732715526224,16.98544454,237.47,237.39,4.2124]
[1732715526430,16.98544454,237.47,237.38,12.77444454]
[1732715526654,12.77444454,237.49,237.42,12.77444454]
[1732715526829,4.2105,237.51,237.42,12.77444454]
[1732715527026,0.5190988,237.61,237.5,12.77444454]
[1732715527351,0.5190988,237.61,237.55,12.77444454]
[1732715527861,0.5190988,237.61,237.53,12.77444454]
[1732715528241,0.5190988,237.61,237.53,16.98424454]
[1732715528833,12.77444454,237.57,237.49,12.77444454]
[1732715529052,12.77444454,237.57,237.47,28.67444454]
[1732715529256,12.77444454,237.57,237.47,32.88534454]
[1732715529933,12.77444454,237.57,237.49,12.77444454]
[1732715530354,16.98384454,237.57,237.49,16.98504454]
[1732715531051,12.77444454,237.55,237.45,12.77444454]
[1732715531242,12.77444454,237.55,237.47,12.77444454]
[1732715531633,16.98384454,237.57,237.47,12.77444454]
[1732715532345,16.98384454,237.57,237.47,16.98534454]
[1732715533555,12.77444454,237.59,237.5,12.77444454]
[1732715534538,16.98344454,237.59,237.5,16.98474454]
[1732715535659,12.77444454,237.57,237.48,12.77444454]
[1732715535953,13.29354334,237.61,237.52,12.77444454]
[1732715537043,13.29354334,237.61,237.53,4.2099]
[1732715538043,17.50214334,237.61,237.53,4.2099]
[1732715538464,13.29354334,237.61,237.53,4.2099]
[1732715539651,12.77444454,237.57,237.48,12.77444454]
[1732715539857,12.77444454,237.55,237.47,16.3452]
[1732715540177,12.77444454,237.53,237.45,4.2112]
[1732715540533,12.77444454,237.53,237.44,12.77444454]
[1732715540738,12.77444454,237.53,237.44,16.98584454]
[1732715541156,12.77444454,237.57,237.48,12.77444454]
[1732715541349,12.77444454,237.59,237.5,12.77444454]
[1732715542156,13.29354334,237.61,237.54,12.77444454]
[1732715542755,0.5190988,237.61,237.54,12.77444454]
[1732715543268,0.5190988,237.61,237.54,16.98404454]
[1732715543454,0.5190988,237.61,237.56,12.77444454]
[1732715544035,0.5190988,237.61,237.58,12.77444454]
[1732715544647,0.5190988,237.61,237.6,12.77444454]
[1732715545567,0.5190988,237.61,237.6,16.98314454]
[1732715551151,0.415882,237.61,237.6,16.98314454]
[1732715555049,0.415882,237.61,237.6,33.35054454]
[1732715555860,0.415882,237.61,237.6,34.18999089]
[1732715556065,0.84304988,237.61,237.6,34.18999089]
[1732715558148,0.84304988,237.61,237.6,33.35054454]
[1732715558352,0.84304988,237.61,237.6,34.18990553]
[1732715564448,0.84304988,237.61,237.6,29.57964576]
[1732715566260,0.84304988,237.61,237.6,21.41546099]
[1732715566464,0.84304988,237.61,237.6,4.2087]
[1732715568265,0.84304988,237.61,237.59,4.2089]
[1732715568773,0.84304988,237.61,237.6,8.16418477]
[1732715569554,0.84304988,237.61,237.6,9.0036707]
[1732715570482,0.84304988,237.61,237.6,5.04818593]
[1732715570692,0.84304988,237.61,237.6,13.2123707]
[1732715571381,0.84304988,237.61,237.6,4.2087]
[1732715571563,0.84304988,237.61,237.58,4.2091]
[1732715572261,0.84304988,237.61,237.57,4.2092]
[1732715572461,0.84304988,237.61,237.6,8.16418477]
[1732715572765,0.84304988,237.61,237.58,8.16418477]
[1732715573268,0.84304988,237.61,237.57,4.2092]
[1732715573478,0.84304988,237.61,237.55,4.2096]
[1732715574378,0.84304988,237.61,237.55,8.16418477]
[1732715575390,5.05164988,237.61,237.5,4.2105]
[1732715575577,8.16418477,237.6,237.52,8.16418477]
[1732715576483,8.16418477,237.6,237.53,4.2099]
[1732715576680,0.84304988,237.61,237.53,4.2099]
[1732715577092,0.84304988,237.61,237.53,12.37408477]
[1732715577393,13.21573465,237.61,237.53,12.37408477]
[1732715578100,9.00723465,237.61,237.53,12.37408477]
[1732715578269,12.76831518,237.6,237.53,4.2099]
[1732715579484,16.97701518,237.6,237.51,4.2102]
[1732715580082,16.97701518,237.6,237.5,12.76831518]
[1732715580083,12.76831518,237.58,237.5,16.97871518]
[1732715581079,16.97701518,237.6,237.52,12.76831518]
[1732715582375,16.97701518,237.6,237.52,16.97831518]
[1732715583602,0.84304988,237.61,237.58,12.76831518]
[1732715585510,0.84304988,237.61,237.57,4.2091]
[1732715586008,0.84304988,237.61,237.56,12.76831518]
[1732715586009,0.84304988,237.61,237.56,16.97761518]
[1732715587197,0.84304988,237.61,237.58,12.76831518]
[1732715587413,0.84304988,237.61,237.6,12.76831518]
[1732715587899,0.84304988,237.61,237.6,16.97701518]
[1732715588103,0.84304988,237.61,237.6,4.2087]
[1732715588601,0.84304988,237.61,237.56,12.76831518]
[1732715588774,0.84304988,237.61,237.57,4.2092]
[1732715590009,0.84304988,237.61,237.55,4.2096]
[1732715590202,5.05164988,237.61,237.54,4.2098]
[1732715590511,12.76831518,237.6,237.5,12.76831518]
[1732715591383,16.97701518,237.6,237.52,12.76831518]
[1732715592094,16.97701518,237.6,237.48,14.738]
[1732715592095,12.76831518,237.58,237.5,12.76831518]
[1732715593110,16.97701518,237.6,237.5,12.76831518]
[1732715593493,16.97701518,237.6,237.52,12.76831518]
[1732715594503,16.97701518,237.6,237.52,16.97831518]
[1732715595785,12.76831518,237.56,237.48,4.2108]
[1732715596986,16.97781518,237.56,237.48,4.2108]
[1732715597184,12.76831518,237.5,237.44,26.04939569]
[1732715597402,12.76831518,237.48,237.39,38.81771087]
[1732715597599,35.0,237.55,237.39,26.04939569]
[1732715597600,12.76831518,237.46,237.39,26.04939569]
[1732715597796,12.76831518,237.46,237.37,16.98091518]
[1732715597980,12.76831518,237.46,237.39,12.76831518]
[1732715598183,12.76831518,237.46,237.37,16.98091518]
[1732715598384,12.76831518,237.46,237.37,16.98101518]
[1732715599110,12.76831518,237.44,237.32,10.534]
[1732715599302,12.76831518,237.42,237.35,12.76831518]
[1732715599506,12.76831518,237.42,237.33,16.98181518]
[1732715601192,12.76831518,237.42,237.31,12.76831518]
[1732715601193,12.76831518,237.4,237.31,12.76831518]
[1732715601898,12.76831518,237.38,237.31,12.76831518]
[1732715602495,12.76831518,237.38,237.29,4.2142]
[1732715602496,16.98101518,237.38,237.29,12.76831518]
[1732715602912,12.76831518,237.38,237.29,12.76831518]
[1732715603205,16.98091518,237.38,237.29,12.76831518]
[1732715604199,12.76831518,237.38,237.31,12.76831518]
[1732715604414,12.76831518,237.4,237.31,12.76831518]
[1732715604713,12.76831518,237.4,237.32,4.2137]
[1732715605084,17.72129958,237.4,237.32,4.2137]
[1732715606607,0.7406844,237.4,237.37,12.76831518]
[1732715606813,0.7406844,237.4,237.39,12.76831518]
[1732715607907,0.7406844,237.4,237.36,12.76831518]
[1732715608305,0.7406844,237.4,237.37,4.2128]
[1732715608498,0.7406844,237.4,237.38,12.76831518]
[1732715610308,0.7406844,237.4,237.39,4.2124]
[1732715610612,0.7406844,237.4,237.35,16.1585]
[1732715610613,0.7406844,237.4,237.33,4.2135]
[1732715610794,0.7406844,237.4,237.38,12.76831518]
[1732715611508,0.7406844,237.4,237.36,12.76831518]
[1732715612814,0.7406844,237.4,237.34,12.76831518]
[1732715613312,0.7406844,237.4,237.34,4.2133]
[1732715613517,0.7406844,237.4,237.34,16.98161518]
[1732715615309,12.76831518,237.38,237.3,12.76831518]
[1732715615521,12.76831518,237.36,237.28,12.76831518]
[1732715616415,12.76831518,237.38,237.3,12.76831518]
[1732715616593,12.76831518,237.38,237.31,4.2138]
[1732715616796,0.7406844,237.4,237.37,12.76831518]
[1732715617000,0.7406844,237.4,237.39,12.76831518]
[1732715618620,0.7406844,237.4,237.39,16.98071518]
[1732715621318,0.7406844,237.4,237.39,17.82085999]
[1732715621531,0.7406844,237.4,237.39,12.76831518]
[1732715621708,0.7406844,237.4,237.39,16.98071518]
[1732715622302,0.7406844,237.4,237.37,4.2128]
[1732715622503,0.7406844,237.4,237.35,12.76831518]
[1732715622898,0.7406844,237.4,237.32,15.8187]
[1732715622899,0.7406844,237.4,237.37,12.76831518]
[1732715623597,0.7406844,237.4,237.37,16.98101518]
[1732715626317,0.7406844,237.4,237.37,4.2127]
[1732715626521,0.7406844,237.4,237.36,4.2129]
[1732715628719,0.7406844,237.4,237.33,12.76831518]
[1732715629231,12.76831518,237.37,237.31,4.2138]
[1732715629436,12.76831518,237.33,237.26,12.76831518]
[1732715629620,12.76831518,237.33,237.24,14.95388309]
[1732715629804,12.76831518,237.33,237.24,12.76831518]
[1732715630409,12.76831518,237.33,237.25,4.2149]
[1732715630603,4.2132,237.35,237.25,4.2149]
[1732715630604,12.76831518,237.35,237.26,12.76831518]
[1732715631008,12.76831518,237.31,237.19,0.84079314]
[1732715631223,12.76831518,237.31,237.22,12.76831518]
[1732715631615,12.76831518,237.31,237.24,12.76831518]
[1732715631812,13.608,237.34,237.26,12.76831518]
[1732715632512,17.8213,237.34,237.26,16.98301518]
[1732715633609,12.76831518,237.37,237.3,12.76831518]
[1732715633816,32.80971518,237.39,237.32,12.76831518]
[1732715634014,20.0414,237.39,237.32,12.76831518]
[1732715634627,32.80971518,237.39,237.32,12.76831518]
[1732715634837,37.02221518,237.39,237.32,12.76831518]
[1732715635217,37.76289958,237.39,237.32,12.76831518]
[1732715636329,37.76289958,237.39,237.3,16.98231518]
[1732715637023,12.76831518,237.37,237.3,16.98231518]
[1732715638030,12.76831518,237.37,237.3,4.214]
[1732715638217,12.76831518,237.35,237.28,12.76831518]
[1732715638416,12.76831518,237.35,237.28,16.98261518]
[1732715638724,16.98121518,237.37,237.28,16.98261518]
[1732715639114,16.98121518,237.37,237.3,12.76831518]
[1732715641627,20.7820844,237.39,237.32,12.76831518]
[1732715641827,20.7820844,237.39,237.34,12.76831518]
[1732715641828,7.1740844,237.39,237.34,12.76831518]
[1732715643418,0.7406844,237.39,237.34,12.76831518]
[1732715643626,0.7406844,237.39,237.34,16.98161518]
[1732715645640,0.7406844,237.39,237.32,12.76831518]
[1732715647542,0.7406844,237.39,237.27,4.2145]
[1732715647543,12.76831518,237.35,237.27,4.2145]
[1732715647838,16.98161518,237.35,237.27,4.2145]
[1732715648720,16.98161518,237.35,237.28,12.76831518]
[1732715649235,16.98161518,237.35,237.26,12.76831518]
[1732715649940,16.98161518,237.35,237.2,41.27235876]
[1732715649941,12.76831518,237.31,237.23,4.2151]
[1732715650152,12.76831518,237.29,237.2,12.76831518]
[1732715650331,12.76831518,237.29,237.18,16.4348]
[1732715650332,12.76831518,237.25,237.19,4.2159]
[1732715650641,12.76831518,237.27,237.18,16.98441518]
[1732715650837,12.76831518,237.28,237.2,12.76831518]
[1732715651048,0.2450273,237.29,237.22,12.76831518]
[1732715652339,0.2450273,237.29,237.26,12.76831518]
[1732715652645,0.2450273,237.29,237.25,12.76831518]
[1732715652945,0.2450273,237.29,237.23,12.76831518]
[1732715654347,0.2450273,237.29,237.25,12.76831518]
[1732715654728,0.2450273,237.29,237.24,4.2151]
[1732715654729,0.2450273,237.29,237.28,12.76831518]
[1732715656443,0.2450273,237.29,237.28,16.98271518]
[1732715658328,0.2450273,237.29,237.28,17.82335498]
[1732715659256,0.2450273,237.29,237.28,16.98271518]
[1732715661448,0.2450273,237.29,237.28,12.76831518]
[1732715662526,0.2450273,237.29,237.28,16.98271518]
[1732715665451,0.2450273,237.29,237.28,12.76831518]
[1732715668748,0.2450273,237.29,237.28,16.98271518]
[1732715670566,0.2450273,237.29,237.28,12.76831518]
[1732715672272,0.2450273,237.29,237.27,4.2145]
[1732715672456,0.2450273,237.29,237.28,8.1863702]
[1732715674347,0.2450273,237.29,237.28,12.4007702]
[1732715683063,0.4956571,237.37,237.28,12.4007702]
[1732715683064,0.4956571,237.37,237.3,15.3201]
[1732715683246,19.9835,237.49,237.36,40.931851]
[1732715683445,24.1931,237.55,237.48,8.1863702]
[1732715683647,19.9835,237.55,237.48,8.1863702]
[1732715683872,19.9835,237.55,237.5,8.1863702]
[1732715684250,19.9835,237.55,237.49,12.7710359]
[1732715684570,32.7545359,237.55,237.47,12.7710359]
[1732715684970,32.7545359,237.55,237.4,15.4205]
[1732715684971,12.7710359,237.53,237.45,12.7710359]
[1732715686851,12.7710359,237.53,237.45,12.7710359]
[1732715687045,4.2101,237.52,237.45,12.7710359]
[1732715688451,12.7710359,237.51,237.43,12.7710359]
[1732715688663,12.7710359,237.49,237.41,12.7710359]
[1732715689675,16.9818359,237.49,237.41,12.7710359]
[1732715689880,16.9818359,237.49,237.41,16.9831359]
[1732715690062,16.9818359,237.49,237.41,12.7710359]
[1732715691355,16.9818359,237.49,237.41,16.9831359]
[1732715692558,16.9818359,237.49,237.41,12.7710359]
[1732715692757,4.2108,237.49,237.41,12.7710359]
[1732715692957,4.2108,237.49,237.42,12.7710359]
[1732715693381,12.7710359,237.51,237.42,12.7710359]
[1732715693566,4.2106,237.5,237.42,12.7710359]
[1732715695269,4.2106,237.5,237.42,16.9829359]
[1732715695472,4.2106,237.5,237.42,12.7710359]
[1732715696564,12.7710359,237.49,237.42,12.7710359]
[1732715697166,12.7710359,237.49,237.41,4.2121]
[1732715697557,12.7710359,237.47,237.4,16.9832359]
[1732715699082,16.9821359,237.47,237.38,12.7710359]
[1732715699481,4.2111,237.47,237.4,12.7710359]
[1732715701973,16.9808359,237.54,237.46,12.7710359]
[1732715702176,16.9808359,237.54,237.44,12.7710359]
[1732715702401,12.7710359,237.52,237.44,12.7710359]
[1732715703066,4.2103,237.51,237.44,12.7710359]
[1732715703566,4.2103,237.51,237.43,4.2116]
[1732715704059,12.7710359,237.5,237.42,12.7710359]
[1732715704270,12.7710359,237.5,237.4,12.7710359]
[1732715704674,12.7710359,237.5,237.42,12.7710359]
[1732715705280,4.2107,237.49,237.42,16.9829359]
[1732715705479,12.7710359,237.52,237.44,12.7710359]
[1732715706277,8.17686185,237.52,237.44,8.17686185]
[1732715706790,8.17686185,237.51,237.42,4.2119]
[1732715706976,8.17686185,237.51,237.42,12.38876185]
[1732715707489,12.38716185,237.51,237.42,12.38876185]
[1732715707684,12.38716185,237.51,237.44,8.17686185]
[1732715707685,8.17686185,237.51,237.44,8.17686185]
[1732715708269,4.2098,237.54,237.46,8.17686185]
[1732715708463,6.60368214,237.6,237.48,8.17686185]
[1732715708464,20.21168214,237.6,237.48,8.17686185]
[1732715708696,4.2089,237.59,237.48,8.17686185]
[1732715708987,8.17686185,237.56,237.48,8.17686185]
[1732715709590,4.2096,237.55,237.48,8.17686185]
[1732715710299,4.2096,237.55,237.48,12.38766185]
[1732715710983,4.2096,237.55,237.48,8.17686185]
[1732715711766,3.2096,237.55,237.48,8.17686185]
[1732715711970,8.17686185,237.52,237.45,8.17686185]
[1732715712383,3.2096,237.55,237.46,8.17686185]
[1732715712587,8.17686185,237.54,237.46,8.17686185]
[1732715713797,12.38666185,237.54,237.46,12.38806185]
[1732715713999,8.17686185,237.52,237.45,8.17686185]
[1732715714678,8.17686185,237.5,237.44,16.1818]
[1732715715092,8.17686185,237.5,237.44,20.3933]
[1732715715498,8.17686185,237.52,237.44,28.57016185]
[1732715716272,10.5228,237.58,237.46,8.17686185]
[1732715716497,8.17686185,237.55,237.46,8.17686185]
[1732715716894,19.9995,237.66,237.53,8.17686185]
[1732715717098,8.17686185,237.65,237.57,8.17686185]
[1732715717693,4.208,237.64,237.59,8.17686185]
[1732715717891,8.17686185,237.67,237.59,8.17686185]
[1732715718097,4.2077,237.66,237.59,8.17686185]
[1732715718276,4.2071,237.7,237.6,0.83951807]
[1732715718478,12.38396185,237.7,237.6,0.83951807]
[1732715718893,8.17686185,237.7,237.6,0.83951807]
[1732715719085,8.17686185,237.71,237.6,0.83951807]
[1732715719485,12.38366185,237.71,237.6,0.83951807]
[1732715720187,4.2065,237.73,237.6,0.83951807]
[1732715720396,4.2065,237.73,237.6,20.21377787]
[1732715720397,12.7554598,237.71,237.6,20.21377787]
[1732715721193,4.2065,237.73,237.6,19.3742598]
[1732715721405,0.43045256,237.76,237.6,32.1297196]
[1732715721600,12.7554598,237.75,237.6,32.96903179]
[1732715721808,16.9615598,237.75,237.6,32.96903179]
[1732715721983,12.7554598,237.73,237.6,20.21357199]
[1732715723281,12.7554598,237.73,237.6,32.96903179]
[1732715723508,13.18591236,237.77,237.62,15.0289]
[1732715723693,12.7554598,237.77,237.69,12.7554598]
[1732715723897,16.9611598,237.77,237.69,12.7554598]
[1732715724100,12.7554598,237.73,237.63,0.8391357]
[1732715724291,12.7554598,237.75,237.67,12.7554598]
[1732715724492,12.7554598,237.76,237.69,12.7554598]
[1732715724698,12.7554598,237.76,237.62,15.0289]
[1732715724699,12.7554598,237.77,237.7,12.7554598]
[1732715725101,12.7554598,237.76,237.69,12.7554598]
[1732715725292,12.7554598,237.76,237.69,4.2071]
[1732715726607,12.7554598,237.77,237.7,12.7554598]
[1732715726804,12.7554598,237.77,237.69,17.80168766]
[1732715727405,13.18591236,237.79,237.72,16.9619598]
[1732715727606,0.43045256,237.8,237.72,4.2065]
[1732715727790,12.7554598,237.78,237.71,12.7554598]
[1732715728190,12.7554598,237.77,237.7,4.2068]
[1732715728900,12.7554598,237.77,237.7,16.9622598]
[1732715730520,4.63515256,237.83,237.72,12.7554598]
[1732715730813,12.7554598,237.81,237.72,12.7554598]
[1732715730992,0.43045256,237.8,237.72,12.7554598]
[1732715731311,12.7554598,237.79,237.72,12.7554598]
[1732715731814,12.7554598,237.8,237.72,16.9619598]
[1732715731989,13.18591236,237.8,237.72,16.9619598]
[1732715732415,17.39111236,237.8,237.72,16.9619598]
[1732715732603,17.39111236,237.8,237.72,4.2065]
[1732715732795,16.9606598,237.8,237.72,4.2065]
[1732715732998,12.7554598,237.78,237.71,15.5801]
[1732715733196,12.7554598,237.76,237.68,12.7554598]
[1732715733516,12.7554598,237.74,237.69,12.75546]
[1732715733697,0.43045256,237.73,237.66,12.7554598]
[1732715733910,12.7554598,237.74,237.66,16.9630598]
[1732715734097,12.7554598,237.74,237.67,12.75546]
[1732715734995,0.43045256,237.79,237.7,12.7554598]
[1732715735304,12.7554598,237.79,237.7,12.7554598]
[1732715735505,13.18591236,237.79,237.7,12.7554598]
[1732715736008,17.39131236,237.79,237.7,16.9622598]
[1732715736212,16.9608598,237.79,237.7,16.9622598]
[1732715737013,12.7554598,237.77,237.7,16.9622598]
[1732715737389,4.2048,237.82,237.67,12.75546]
[1732715737390,12.7554598,237.73,237.67,12.75546]
[1732715737791,12.7554598,237.73,237.67,16.96286]
[1732715738798,0.43045256,237.81,237.67,16.96286]
[1732715738799,12.7554598,237.75,237.68,12.7554598]
[1732715739000,12.7554598,237.75,237.68,13.59459998]
[1732715739204,12.7554598,237.75,237.68,12.7554598]
[1732715739610,12.7554598,237.75,237.67,16.96286]
[1732715739807,4.2062,237.74,237.67,16.96286]
[1732715740028,12.7554598,237.73,237.67,12.75546]
[1732715740337,4.63665256,237.74,237.67,12.75546]
[1732715740338,8.1634057,237.72,237.67,12.75546]
[1732715740505,8.59385826,237.72,237.67,12.75546]
[1732715740913,8.1634057,237.7,237.67,12.75546]
[1732715741216,8.1634057,237.7,237.65,15.2596]
[1732715741814,8.1634057,237.68,237.64,8.163405]
[1732715742009,8.1634057,237.66,237.64,8.163405]
[1732715742212,8.1634057,237.66,237.59,15.7336]
[1732715742414,8.1634057,237.66,237.6,8.163406]
[1732715742622,8.59385826,237.66,237.6,8.163406]
[1732715743027,8.1634057,237.64,237.6,8.163406]
[1732715743234,0.43045256,237.63,237.55,12.3730057]
[1732715743431,8.1634057,237.62,237.55,12.3730057]
[1732715743635,8.1634057,237.65,237.58,8.163406]
[1732715743808,0.43045256,237.64,237.58,8.163406]
[1732715744011,4.63855256,237.64,237.58,8.163406]
[1732715744429,17.40227018,237.64,237.58,8.163406]
[1732715744636,12.76371762,237.6,237.54,15.1984]
[1732715745208,12.76371762,237.6,237.55,16.848337]
[1732715745409,12.76371762,237.62,237.55,16.848337]
[1732715745633,4.63855256,237.64,237.56,12.76371762]
[1732715745809,4.2081,237.64,237.56,12.76371762]
[1732715746006,12.76371762,237.62,237.55,16.848337]
[1732715746209,0.43045256,237.61,237.55,16.848337]
[1732715746409,12.76371762,237.6,237.55,16.848337]
[1732715746628,12.76371762,237.6,237.54,15.1984]
[1732715746831,0.43045256,237.67,237.54,27.96211762]
[1732715747030,12.76371762,237.62,237.54,40.72583562]
[1732715747330,12.76371762,237.6,237.54,27.962118]
[1732715748536,16.97241762,237.6,237.54,27.962118]
[1732715749112,12.76371762,237.6,237.54,32.171918]
[1732715749512,12.76371762,237.62,237.54,44.93563562]
[1732715750042,0.43045256,237.64,237.56,12.76371762]
[1732715750338,12.76371762,237.62,237.54,44.93563562]
[1732715751918,0.43045256,237.69,237.54,44.93563562]
[1732715751919,12.76371762,237.64,237.54,45.77523544]
[1732715752226,12.76371762,237.64,237.56,12.76371762]
[1732715752531,12.76371762,237.64,237.56,13.60328138]
[1732715752741,0.43045256,237.69,237.56,13.60328138]
[1732715752919,16.97151762,237.65,237.57,4.2092]
[1732715757539,4.2073,237.68,237.57,4.2092]
[1732715757838,12.76371762,237.6,237.54,27.962118]
[1732715758039,12.76371762,237.58,237.54,27.962118]
[1732715758634,12.76371762,237.58,237.54,15.1984]
[1732715758935,14.7256,237.68,237.52,14.7256]
[1732715758936,12.76371762,237.56,237.52,14.7256]
[1732715759136,12.76371762,237.54,237.48,15.7594]
[1732715759346,12.76371762,237.54,237.49,12.763717]
[1732715759534,12.76371762,237.52,237.49,12.763717]
[1732715759835,12.76371762,237.52,237.48,15.7594]